bitfinex/quotes_BTCUSD_20241003
["timestamp","ask_amount","ask_price","bid_price","bid_amount"]
[1727954127533,0.286636,61111.0,61110.0,0.0009811]
[1727954127742,0.50169191,61111.0,61110.0,0.0009811]
[1727954127952,0.50169191,61111.0,61107.0,0.32378066]
[1727954127953,0.286644,61108.0,61107.0,0.32378066]
[1727954128166,0.62743241,61108.0,61107.0,0.32378066]
[1727954128386,0.82886603,61108.0,61107.0,0.0755]
[1727954128622,1.01770553,61108.0,61107.0,0.0755]
[1727954129080,1.16483652,61108.0,61107.0,0.0755]
[1727954129295,0.123,61107.0,61103.0,0.0765]
[1727954129510,0.3123875,61104.0,61103.0,0.0765]
[1727954129725,0.89206374,61104.0,61103.0,0.0765]
[1727954130391,0.99206374,61104.0,61103.0,0.0765]
[1727954131033,1.00206374,61104.0,61103.0,0.0765]
[1727954131246,0.87633124,61104.0,61103.0,0.0765]
[1727954131502,1.00206374,61104.0,61103.0,0.0765]
[1727954132411,1.12458674,61104.0,61103.0,0.0765]
[1727954132624,0.72614453,61104.0,61103.0,0.0784996]
[1727954132832,0.67427533,61104.0,61103.0,0.1753]
[1727954133052,0.4463421,61104.0,61103.0,0.1753]
[1727954133271,0.4463421,61104.0,61103.0,0.1772996]
[1727954133272,0.37284171,61104.0,61103.0,0.1772996]
[1727954133482,0.42184058,61104.0,61103.0,0.1772996]
[1727954133692,0.35984171,61104.0,61103.0,0.1772996]
[1727954133906,0.57802651,61104.0,61103.0,0.1772996]
[1727954134125,0.60252881,61104.0,61103.0,0.1772996]
[1727954134305,0.52902842,61104.0,61103.0,0.1772996]
[1727954134801,0.59252881,61104.0,61103.0,0.1772996]
[1727954135050,0.51902842,61104.0,61103.0,0.1772996]
[1727954135278,0.59552881,61104.0,61103.0,0.1772996]
[1727954135495,0.59552778,61104.0,61103.0,0.1772996]
[1727954135713,0.62118151,61104.0,61103.0,0.1772996]
[1727954135919,0.74691401,61104.0,61103.0,0.1772996]
[1727954136131,0.67341465,61104.0,61103.0,0.0784996]
[1727954136355,0.67341465,61104.0,61103.0,0.0765]
[1727954136537,1.02463727,61104.0,61103.0,0.0765]
[1727954137286,1.02463727,61104.0,61103.0,0.078138]
[1727954137502,0.92663813,61104.0,61103.0,0.078138]
[1727954137938,0.92363813,61104.0,61103.0,0.078138]
[1727954138144,0.9059844,61104.0,61103.0,0.078138]
[1727954138351,0.8999844,61104.0,61103.0,0.078138]
[1727954138567,0.7772519,61104.0,61103.0,0.078138]
[1727954138781,0.7772519,61104.0,61103.0,0.0801376]
[1727954138782,0.62006519,61104.0,61103.0,0.0801376]
[1727954138990,0.62006519,61104.0,61103.0,0.078138]
[1727954139207,0.60906519,61104.0,61103.0,0.078138]
[1727954139427,0.61806519,61104.0,61103.0,0.078138]
[1727954139641,0.6575089,61104.0,61103.0,0.078138]
[1727954139849,0.6485089,61104.0,61103.0,0.078138]
[1727954140067,0.74650578,61104.0,61103.0,0.078138]
[1727954140276,0.75450578,61104.0,61103.0,0.078138]
[1727954140535,0.45521434,61104.0,61103.0,0.078138]
[1727954140746,0.75576136,61104.0,61103.0,0.078138]
[1727954140956,0.74976136,61104.0,61103.0,0.078138]
[1727954141167,0.65676448,61104.0,61103.0,0.078138]
[1727954141393,0.78042964,61104.0,61103.0,0.078138]
[1727954141833,0.68241894,61104.0,61103.0,0.078138]
[1727954142250,0.80491787,61104.0,61103.0,0.078138]
[1727954144697,0.76550432,61104.0,61103.0,0.078138]
[1727954145367,0.64295542,61104.0,61103.0,0.078138]
[1727954148575,0.61730096,61104.0,61103.0,0.078138]
[1727954150751,0.43111425,61104.0,61103.0,0.177338]
[1727954150976,0.47731639,61104.0,61103.0,0.177338]
[1727954151194,0.47792611,61104.0,61103.0,0.177338]
[1727954151409,0.176655,61104.0,61103.0,0.177338]
[1727954151626,0.4780371,61104.0,61103.0,0.177338]
[1727954151916,0.50369036,61104.0,61103.0,0.177338]
[1727954152368,0.63178571,61104.0,61103.0,0.177338]
[1727954152581,0.62378571,61104.0,61103.0,0.177338]
[1727954152793,0.62378571,61104.0,61103.0,0.1793376]
[1727954153003,0.52565465,61104.0,61103.0,0.1793376]
[1727954153227,0.64831881,61104.0,61103.0,0.1793376]
[1727954153680,0.66704886,61104.0,61103.0,0.1793376]
[1727954153898,0.60034369,61104.0,61103.0,0.1793376]
[1727954154103,0.60734369,61104.0,61103.0,0.0801376]
[1727954154951,0.58169043,61104.0,61103.0,0.0801376]
[1727954158308,0.47926315,61104.0,61103.0,0.0801376]
[1727954158555,0.47919969,61104.0,61103.0,0.0801376]
[1727954158800,0.42722377,61104.0,61103.0,0.0801376]
[1727954159287,0.40422377,61104.0,61103.0,0.0801376]
[1727954159548,0.5532952,61104.0,61103.0,0.0801376]
[1727954159795,0.37857028,61104.0,61103.0,0.0801376]
[1727954160485,0.38965947,61104.0,61103.0,0.0801376]
[1727954160748,0.37857028,61104.0,61103.0,0.0801376]
[1727954160990,0.47674518,61104.0,61103.0,0.0801376]
[1727954161513,0.65220665,61104.0,61103.0,0.0801376]
[1727954161761,0.5294903,61104.0,61103.0,0.0801376]
[1727954161991,0.65220665,61104.0,61103.0,0.0801376]
[1727954162483,0.5294903,61104.0,61103.0,0.0801376]
[1727954162722,0.55514343,61104.0,61103.0,0.0801376]
[1727954163713,0.67789007,61104.0,61103.0,0.0801376]
[1727954163962,0.45625123,61104.0,61103.0,0.0801376]
[1727954164480,0.45656658,61104.0,61103.0,0.0801376]
[1727954165226,0.47956658,61104.0,61103.0,0.0801376]
[1727954165474,0.64275329,61104.0,61103.0,0.001638]
[1727954165896,0.64261945,61104.0,61103.0,0.001638]
[1727954166111,0.80580616,61104.0,61103.0,0.001638]
[1727954167948,0.79880616,61104.0,61103.0,0.001638]
[1727954168340,0.80180616,61104.0,61103.0,0.001638]
[1727954168544,0.77915303,61104.0,61103.0,0.0036376]
[1727954168673,0.77215303,61104.0,61103.0,0.0036376]
[1727954169087,0.60896632,61104.0,61103.0,0.0036376]
[1727954169497,0.75629024,61104.0,61103.0,0.0036376]
[1727954170110,0.76229024,61104.0,61103.0,0.0036376]
[1727954170437,0.7634782,61104.0,61103.0,0.0036376]
[1727954171441,0.61608704,61104.0,61103.0,0.0036376]
[1727954171985,0.64174097,61104.0,61103.0,0.0036376]
[1727954173454,0.47855426,61104.0,61103.0,0.0036376]
[1727954175029,0.45290033,61104.0,61103.0,0.0036376]
[1727954178376,0.47855441,61104.0,61103.0,0.0036376]
[1727954179467,0.45290033,61104.0,61103.0,0.0036376]
[1727954181540,0.61608704,61104.0,61103.0,0.0036376]
[1727954182724,0.64174121,61104.0,61103.0,0.0036376]
[1727954182974,0.4785545,61104.0,61103.0,0.0036376]
[1727954184264,0.47870012,61104.0,61103.0,0.0036376]
[1727954185161,0.45304595,61104.0,61103.0,0.0036376]
[1727954185982,0.61623266,61104.0,61103.0,0.0036376]
[1727954186417,0.77941937,61104.0,61103.0,0.0036376]
[1727954187805,0.77941937,61104.0,61103.0,0.001638]
[1727954188718,0.80499676,61104.0,61103.0,0.001638]
[1727954189149,0.97095062,61104.0,61103.0,0.001638]
[1727954189355,1.21812908,61104.0,61103.0,0.001638]
[1727954189533,1.38408294,61104.0,61103.0,0.001638]
[1727954190409,1.21812908,61104.0,61103.0,0.001638]
[1727954190628,1.38408294,61104.0,61103.0,0.001638]
[1727954190833,1.31812908,61104.0,61103.0,0.001638]
[1727954193070,0.79978874,61104.0,61103.0,0.001638]
[1727954193274,1.00480664,61104.0,61103.0,0.001638]
[1727954193510,1.54011236,61104.0,61103.0,0.001638]
[1727954193715,1.2918317,61104.0,61103.0,0.001638]
[1727954196089,1.31748847,61104.0,61103.0,0.001638]
[1727954197346,1.02856926,61104.0,61103.0,0.001638]
[1727954197533,1.02856926,61104.0,61103.0,0.0036376]
[1727954197815,0.90702694,61104.0,61103.0,0.0036376]
[1727954198031,0.74118448,61104.0,61103.0,0.0036376]
[1727954199345,0.74118448,61104.0,61103.0,0.001638]
[1727954199557,0.90437119,61104.0,61103.0,0.001638]
[1727954202267,0.69971301,61104.0,61103.0,0.001638]
[1727954202489,0.90453097,61104.0,61103.0,0.001638]
[1727954202669,0.74134426,61104.0,61103.0,0.001638]
[1727954203618,0.74134426,61104.0,61103.0,0.0036376]
[1727954204844,1.0280894,61104.0,61103.0,0.0036376]
[1727954205146,0.74134426,61104.0,61103.0,0.0036376]
[1727954205826,0.71568749,61104.0,61103.0,0.0036376]
[1727954206965,0.71568749,61104.0,61103.0,0.1036376]
[1727954209213,0.74134238,61104.0,61103.0,0.1036376]
[1727954209414,0.71568749,61104.0,61103.0,0.1036376]
[1727954210513,0.8788742,61104.0,61103.0,0.1036376]
[1727954211623,0.87889184,61104.0,61103.0,0.1036376]
[1727954212270,0.87889184,61104.0,61103.0,0.101638]
[1727954212716,0.90454694,61104.0,61103.0,0.101638]
[1727954212937,0.87889184,61104.0,61103.0,0.101638]
[1727954213851,1.04475733,61104.0,61103.0,0.101638]
[1727954215756,0.87889184,61104.0,61103.0,0.101638]
[1727954215981,1.07041295,61104.0,61103.0,0.101638]
[1727954217381,1.04475733,61104.0,61103.0,0.101638]
[1727954218928,0.88157062,61104.0,61103.0,0.101638]
[1727954219434,0.88157062,61104.0,61103.0,0.1036376]
[1727954219623,0.88157062,61104.0,61103.0,0.101638]
[1727954220590,0.88151118,61104.0,61103.0,0.101638]
[1727954220816,0.90716679,61104.0,61103.0,0.101638]
[1727954221064,0.88151118,61104.0,61103.0,0.101638]
[1727954221534,1.04469789,61104.0,61103.0,0.101638]
[1727954223467,0.163663,61101.0,61100.0,4e-05]
[1727954223712,0.92406868,61101.0,61100.0,4e-05]
[1727954223940,1.21073079,61101.0,61100.0,4e-05]
[1727954224169,1.39957588,61101.0,61100.0,4e-05]
[1727954224423,1.56546909,61101.0,61100.0,4e-05]
[1727954225190,1.43973659,61101.0,61100.0,4e-05]
[1727954225428,1.23873079,61101.0,61100.0,4e-05]
[1727954225663,1.404624,61101.0,61100.0,4e-05]
[1727954226603,1.23873079,61101.0,61100.0,4e-05]
[1727954232103,1.23873079,61101.0,61100.0,0.001678]
[1727954232390,1.42757602,61101.0,61100.0,0.001678]
[1727954237639,1.13818052,61101.0,61099.0,0.00140453]
[1727954237845,0.99330129,61100.0,61099.0,0.00140453]
[1727954240597,1.00630129,61100.0,61099.0,0.00140453]
[1727954240809,1.170488,61100.0,61099.0,0.00140453]
[1727954241529,1.156488,61100.0,61099.0,0.00140453]
[1727954241767,1.170488,61100.0,61099.0,0.00140453]
[1727954242456,1.184488,61100.0,61099.0,0.00140453]
[1727954244064,1.26910266,61100.0,61092.0,0.001638]
[1727954244317,0.57560321,61093.0,61092.0,0.001638]
[1727954244581,1.01128968,61093.0,61092.0,0.001638]
[1727954244817,1.29795179,61093.0,61092.0,0.001638]
[1727954245582,1.30695179,61093.0,61092.0,0.001638]
[1727954245837,1.4701385,61093.0,61092.0,0.001638]
[1727954246064,0.26369,61091.0,61090.0,0.00155702]
[1727954246295,0.70666318,61091.0,61090.0,0.00155702]
[1727954246537,0.99552148,61091.0,61090.0,0.00155702]
[1727954246771,1.02118522,61091.0,61090.0,0.00155702]
[1727954247010,1.15870819,61091.0,61090.0,0.00155702]
[1727954247489,1.16870819,61091.0,61090.0,0.00155702]
[1727954248233,1.17570819,61091.0,61090.0,0.00155702]
[1727954248916,1.17570819,61091.0,61067.0,0.41203366]
[1727954248917,0.433333,61075.0,61074.0,0.001638]
[1727954249145,1.04628706,61075.0,61074.0,0.001638]
[1727954249372,1.29089698,61075.0,61074.0,0.001638]
[1727954249615,1.21339698,61075.0,61074.0,0.001638]
[1727954249853,1.23906727,61075.0,61074.0,0.001638]
[1727954250322,1.23906727,61075.0,61050.0,0.0766]
[1727954250323,0.163797,61051.0,61050.0,0.0766]
[1727954250553,0.04901191,61052.0,61050.0,0.0766]
[1727954250785,0.04901191,61054.0,61052.0,0.0766]
[1727954251017,0.14703575,61064.0,61051.0,0.2170325]
[1727954251018,0.04901191,61062.0,61056.0,0.0766]
[1727954251288,0.04901191,61062.0,61057.0,0.07909896]
[1727954251289,0.02567304,61059.0,61057.0,0.07909896]
[1727954251519,0.02567304,61059.0,61051.0,0.418894]
[1727954251520,0.02567304,61059.0,61058.0,0.163778]
[1727954251752,0.04901191,61065.0,61059.0,0.0766]
[1727954251753,0.163766,61063.0,61059.0,0.0766]
[1727954251981,0.163766,61063.0,61061.0,0.1257325]
[1727954251982,0.41204666,61063.0,61061.0,0.1257325]
[1727954252211,0.41204666,61063.0,61059.0,0.0766]
[1727954252212,0.41204666,61063.0,61062.0,0.0766]
[1727954252433,0.163766,61063.0,61062.0,0.0766]
[1727954253566,0.165766,61063.0,61062.0,0.0766]
[1727954254932,0.163766,61063.0,61062.0,0.0766]
[1727954255395,0.166766,61063.0,61062.0,0.0766]
[1727954255627,0.003,61063.0,61062.0,0.0766]
[1727954255847,0.327519,61066.0,61062.0,0.0766]
[1727954256065,0.327519,61066.0,61063.0,0.00327497]
[1727954256066,0.16376,61065.0,61063.0,0.00327497]
[1727954256287,0.1,61070.0,61062.0,0.07987497]
[1727954256288,0.427495,61070.0,61062.0,0.07987497]
[1727954256537,0.327495,61070.0,61066.0,0.19197445]
[1727954256748,0.327495,61070.0,61059.0,0.002]
[1727954256749,0.24828066,61072.0,61067.0,0.0766]
[1727954256973,0.163751,61068.0,61067.0,0.0766]
[1727954258136,0.32749,61071.0,61067.0,0.0766]
[1727954258369,0.163751,61068.0,61067.0,0.0766]
[1727954258812,0.164751,61068.0,61067.0,0.0766]
[1727954259927,0.164751,61068.0,61067.0,0.0786]
[1727954261438,0.163751,61068.0,61067.0,0.0786]
[1727954261652,0.171751,61068.0,61067.0,0.0766]
[1727954262079,0.163751,61068.0,61067.0,0.0766]
[1727954262514,0.165751,61068.0,61067.0,0.0766]
[1727954262974,0.165751,61068.0,61067.0,0.0776]
[1727954263428,0.002,61068.0,61067.0,0.0776]
[1727954263648,0.165751,61068.0,61067.0,0.0776]
[1727954263873,0.165751,61068.0,61067.0,0.241354]
[1727954263874,0.002,61068.0,61067.0,0.241354]
[1727954264118,0.002,61068.0,61067.0,0.24405059]
[1727954265111,0.41201666,61074.0,61067.0,0.08029659]
[1727954265348,0.41201666,61074.0,61071.0,0.163743]
[1727954265583,0.24828066,61074.0,61068.0,0.0827]
[1727954265843,0.24828066,61074.0,61069.0,0.163747]
[1727954266092,0.163741,61072.0,61069.0,0.163747]
[1727954266322,0.163743,61072.0,61068.0,0.246451]
[1727954266563,0.163743,61072.0,61069.0,0.163747]
[1727954266799,0.163744,61071.0,61068.0,0.246451]
[1727954267242,0.163746,61070.0,61069.0,0.003]
[1727954269081,0.37643359,61072.0,61068.0,0.0827]
[1727954269082,0.04897398,61071.0,61068.0,0.0827]
[1727954269311,0.163749,61069.0,61068.0,0.0827]
[1727954270671,0.163749,61069.0,61064.0,0.0911]
[1727954270672,0.327526,61064.0,61062.0,0.0766]
[1727954270921,0.163765,61063.0,61062.0,0.0766]
[1727954271829,0.163773,61060.0,61059.0,0.00082]
[1727954272949,0.164773,61060.0,61059.0,0.00382]
[1727954273186,0.163773,61060.0,61059.0,0.00082]
[1727954273659,0.163773,61060.0,61059.0,0.00382]
[1727954273898,0.18178207,61060.0,61059.0,0.00382]
[1727954274384,0.18178207,61060.0,61059.0,0.00082]
[1727954274385,0.44145863,61060.0,61059.0,0.00082]
[1727954274626,0.72663497,61060.0,61059.0,0.00082]
[1727954275120,0.82763497,61060.0,61059.0,0.00082]
[1727954275355,0.7296485,61060.0,61059.0,0.00082]
[1727954275607,0.7286485,61060.0,61059.0,0.00082]
[1727954275856,0.7376485,61060.0,61059.0,0.00282]
[1727954276087,0.7376485,61060.0,61059.0,0.00082]
[1727954276322,0.7436485,61060.0,61059.0,0.00082]
[1727954276558,0.67181545,61060.0,61051.0,0.0009814]
[1727954276801,0.163794,61052.0,61051.0,0.0009814]
[1727954277054,0.163802,61049.0,61048.0,0.0771]
[1727954278299,0.164802,61049.0,61048.0,0.0771]
[1727954278985,0.001,61049.0,61048.0,0.240905]
[1727954279226,0.001,61049.0,61048.0,0.0771]
[1727954279477,0.164802,61049.0,61048.0,0.0771]
[1727954279719,0.164802,61049.0,61048.0,0.0791]
[1727954280210,0.163802,61049.0,61048.0,0.0771]
[1727954280443,0.163802,61049.0,61048.0,0.0801]
[1727954280903,0.04897634,61056.0,61048.0,0.0771]
[1727954281136,0.163802,61049.0,61048.0,0.0771]
[1727954281370,0.07141445,61056.0,61048.0,0.0771]
[1727954281597,0.07141445,61056.0,61049.0,0.163802]
[1727954281598,0.163794,61052.0,61049.0,0.163802]
[1727954281795,0.163792,61053.0,61050.0,0.163799]
[1727954282006,0.297257,61057.0,61053.0,0.16379]
[1727954282260,0.04897634,61061.0,61057.0,0.0788]
[1727954282506,0.09793995,61064.0,61057.0,0.0788]
[1727954282507,0.163766,61063.0,61060.0,0.19197445]
[1727954282733,0.02567319,61063.0,61060.0,0.19197445]
[1727954282939,0.02567319,61063.0,61057.0,0.0788]
[1727954283155,0.16377,61061.0,61058.0,0.163777]
[1727954283377,0.16377,61061.0,61057.0,0.24258]
[1727954283378,0.163771,61061.0,61057.0,0.24258]
[1727954283596,0.166771,61061.0,61058.0,0.163777]
[1727954284087,0.166771,61061.0,61057.0,0.0788]
[1727954284088,0.003,61061.0,61057.0,0.0788]
[1727954284300,0.163778,61058.0,61057.0,0.0808]
[1727954286367,0.163778,61058.0,61057.0,0.0788]
[1727954286609,0.21274434,61062.0,61058.0,0.163777]
[1727954286820,0.04897634,61063.0,61058.0,0.004]
[1727954287071,0.04897634,61064.0,61059.0,0.32755]
[1727954287310,0.04897634,61064.0,61062.0,0.163766]
[1727954287552,0.04897634,61064.0,61060.0,0.327545]
[1727954287823,0.07346451,61066.0,61062.0,0.35574045]
[1727954287824,0.163758,61066.0,61062.0,0.35574045]
[1727954288045,0.163758,61066.0,61061.0,0.40984]
[1727954288282,0.16376,61065.0,61062.0,0.163767]
[1727954288498,0.16376,61065.0,61061.0,0.40984]
[1727954288499,0.163763,61064.0,61061.0,0.246069]
[1727954288726,0.04897634,61066.0,61061.0,0.0823]
[1727954288966,0.163767,61062.0,61061.0,0.0823]
[1727954289192,0.37650234,61064.0,61061.0,0.0823]
[1727954289434,0.163767,61062.0,61061.0,0.0823]
[1727954290120,0.21282484,61062.0,61061.0,0.0823]
[1727954290424,0.21282484,61062.0,61061.0,0.0843]
[1727954290878,0.163767,61062.0,61061.0,0.0843]
[1727954291095,0.164767,61062.0,61061.0,0.0843]
[1727954291535,0.163767,61062.0,61061.0,0.0823]
[1727954291778,0.21583519,61062.0,61061.0,0.0823]
[1727954292013,0.37671813,61062.0,61061.0,0.0823]
[1727954292249,0.24037242,61062.0,61061.0,0.0823]
[1727954292897,0.26604258,61062.0,61061.0,0.0823]
[1727954293100,0.24038025,61062.0,61061.0,0.0823]
[1727954294935,0.166767,61062.0,61061.0,0.0823]
[1727954295157,0.24039657,61062.0,61061.0,0.0823]
[1727954295553,0.07662957,61062.0,61061.0,0.24607]
[1727954295791,0.05208528,61062.0,61061.0,0.0823]
[1727954296029,0.003,61062.0,61061.0,0.0823]
[1727954296273,0.003,61062.0,61054.0,0.00082]
[1727954296274,0.186786,61055.0,61054.0,0.00082]
[1727954296542,0.65690847,61055.0,61054.0,0.00082]
[1727954296800,0.55872581,61055.0,61054.0,0.00082]
[1727954297578,0.55972581,61055.0,61054.0,0.00082]
[1727954297818,0.56072581,61055.0,61054.0,0.00882]
[1727954298069,0.55872581,61055.0,61054.0,0.00082]
[1727954298806,0.56026724,61055.0,61054.0,0.00082]
[1727954299475,0.56026724,61055.0,61054.0,0.00182]
[1727954299740,0.52244836,61055.0,61054.0,0.19279445]
[1727954300020,0.19746122,61055.0,61054.0,0.26979445]
[1727954300275,0.24653448,61055.0,61054.0,0.07782]
[1727954300514,0.24453448,61055.0,61054.0,0.07782]
[1727954300745,0.24153448,61055.0,61054.0,0.07682]
[1727954300957,0.19246122,61055.0,61054.0,0.07682]
[1727954301490,0.24153386,61055.0,61054.0,0.07682]
[1727954301768,0.02867522,61055.0,61054.0,0.07682]
[1727954301995,0.19246122,61055.0,61054.0,0.07682]
[1727954302475,0.02867522,61055.0,61054.0,0.07682]
[1727954302703,0.02867522,61055.0,61054.0,0.08082]
[1727954302955,0.02567522,61055.0,61054.0,0.08082]
[1727954303218,0.19246122,61055.0,61054.0,0.08082]
[1727954303685,0.18946122,61055.0,61054.0,0.07682]
[1727954303921,0.23853238,61055.0,61054.0,0.07882]
[1727954304152,0.18946122,61055.0,61054.0,0.00282]
[1727954304383,0.263076,61055.0,61054.0,0.00282]
[1727954304623,0.19046122,61055.0,61054.0,0.00282]
[1727954305168,0.02667522,61055.0,61054.0,0.00282]
[1727954305419,0.02667522,61055.0,61054.0,0.43858345]
[1727954305420,0.001,61055.0,61054.0,0.43858345]
[1727954305738,0.001,61055.0,61054.0,0.53258345]
[1727954306550,0.001,61055.0,61054.0,0.340609]
[1727954306820,0.24828066,61059.0,61057.0,0.163781]
[1727954307313,0.24828066,61059.0,61058.0,0.163778]
[1727954307314,0.04907008,61059.0,61058.0,0.163778]
[1727954307546,0.21284308,61060.0,61056.0,0.163783]
[1727954308075,0.04907008,61059.0,61056.0,0.163783]
[1727954308341,0.04907008,61059.0,61054.0,0.18282]
[1727954308588,0.32755,61060.0,61057.0,0.163781]
[1727954308589,0.04907008,61060.0,61057.0,0.163781]
[1727954308857,0.04907008,61060.0,61058.0,0.163776]
[1727954309150,0.04907008,61059.0,61058.0,0.163776]
[1727954309408,0.12545115,61063.0,61057.0,0.327562]
[1727954309409,0.04907008,61060.0,61057.0,0.327562]
[1727954309598,0.28921715,61063.0,61058.0,0.163777]
[1727954309599,0.04907008,61059.0,61058.0,0.163777]
[1727954309833,0.04907008,61060.0,61058.0,0.163777]
[1727954310065,0.04907008,61060.0,61059.0,0.163776]
[1727954312522,0.07360512,61060.0,61059.0,0.163776]
[1727954312754,0.07360512,61061.0,61059.0,0.166776]
[1727954312995,0.02567066,61060.0,61059.0,0.166776]
[1727954313254,0.09927578,61060.0,61059.0,0.003]
[1727954313487,0.09927578,61060.0,61059.0,0.166776]
[1727954314471,0.23632997,61060.0,61059.0,0.166776]
[1727954315217,0.02567066,61060.0,61059.0,0.166776]
[1727954315451,0.09814017,61061.0,61059.0,0.166776]
[1727954315687,0.09814017,61061.0,61059.0,0.003]
[1727954315688,0.30880646,61060.0,61059.0,0.003]
[1727954316162,0.09814017,61060.0,61059.0,0.003]
[1727954316420,0.26191317,61060.0,61057.0,0.163781]
[1727954316668,0.07369897,61058.0,61057.0,0.163781]
[1727954317150,0.07369897,61059.0,61057.0,0.163781]
[1727954317387,0.07369897,61059.0,61054.0,0.69436845]
[1727954317388,0.07369897,61058.0,61055.0,0.327571]
[1727954317626,0.04913394,61056.0,61055.0,0.163785]
[1727954317879,0.04913394,61057.0,61054.0,0.408397]
[1727954318132,0.04913394,61057.0,61055.0,0.163786]
[1727954318423,0.04913394,61056.0,61055.0,0.163786]
[1727954318911,0.09937345,61057.0,61055.0,0.163786]
[1727954319168,0.04913432,61056.0,61054.0,0.08082]
[1727954319414,0.04913448,61055.0,61054.0,0.08082]
[1727954319918,0.10037345,61057.0,61054.0,0.08082]
[1727954319919,0.04913448,61056.0,61054.0,0.08082]
[1727954320899,0.04913448,61055.0,61054.0,0.08082]
[1727954321160,0.05013552,61055.0,61054.0,0.244609]
[1727954321654,0.05013552,61055.0,61054.0,0.252609]
[1727954322110,0.05013552,61055.0,61054.0,0.08882]
[1727954322346,0.001,61055.0,61054.0,0.08882]
[1727954322835,0.05013552,61055.0,61054.0,0.252609]
[1727954323076,0.001,61055.0,61054.0,0.252609]
[1727954323312,0.001,61055.0,61054.0,0.54298345]
[1727954323549,0.002,61055.0,61054.0,0.54298345]
[1727954326754,0.002,61055.0,61054.0,0.44458345]
[1727954328802,0.05113552,61055.0,61054.0,0.44458345]
[1727954329026,0.05113552,61055.0,61054.0,0.252609]
[1727954329294,0.41128666,61055.0,61054.0,0.00882]
[1727954329578,0.66051864,61055.0,61054.0,0.00882]
[1727954329797,0.71250681,61055.0,61054.0,0.00882]
[1727954330282,1.03017286,61055.0,61054.0,0.00882]
[1727954330538,1.00449841,61055.0,61054.0,0.00882]
[1727954331485,1.00613841,61055.0,61054.0,0.00882]
[1727954332490,0.86040857,61055.0,61054.0,0.00882]
[1727954333954,0.88608331,61055.0,61054.0,0.00882]
[1727954334428,0.73866626,61055.0,61054.0,0.00882]
[1727954334915,0.73858382,61055.0,61054.0,0.00882]
[1727954335389,0.71290908,61055.0,61054.0,0.00882]
[1727954336599,0.66092091,61055.0,61054.0,0.00882]
[1727954336845,0.71287822,61055.0,61054.0,0.00882]
[1727954337083,0.87606493,61055.0,61054.0,0.00882]
[1727954338537,0.90174009,61055.0,61054.0,0.00882]
[1727954338774,0.73855338,61055.0,61054.0,0.00882]
[1727954339705,0.71287822,61055.0,61054.0,0.00882]
[1727954341151,0.86027172,61055.0,61054.0,0.00882]
[1727954342867,0.88594689,61055.0,61054.0,0.00882]
[1727954343092,1.0491336,61055.0,61054.0,0.00882]
[1727954344519,0.88594689,61055.0,61054.0,0.00882]
[1727954344791,0.60176018,61055.0,61054.0,0.00882]
[1727954345081,0.40240937,61055.0,61054.0,0.00882]
[1727954345344,0.3767342,61055.0,61054.0,0.00882]
[1727954345568,0.49949422,61055.0,61054.0,0.00882]
[1727954346304,0.3767342,61055.0,61054.0,0.00882]
[1727954346518,0.49949464,61055.0,61054.0,0.00882]
[1727954347199,0.3767342,61055.0,61054.0,0.00882]
[1727954347758,0.49949464,61055.0,61054.0,0.00882]
[1727954348196,0.5505133,61055.0,61054.0,0.00882]
[1727954348433,0.4994911,61055.0,61054.0,0.00882]
[1727954348672,0.40240927,61055.0,61054.0,0.00882]
[1727954349634,0.3767342,61055.0,61054.0,0.00882]
[1727954351770,0.37737528,61055.0,61054.0,0.00882]
[1727954352009,0.54056199,61055.0,61054.0,0.00882]
[1727954352241,0.7640989,61055.0,61054.0,0.00882]
[1727954352695,0.93707625,61055.0,61054.0,0.00882]
[1727954354108,0.96007625,61055.0,61054.0,0.00882]
[1727954355294,0.93440069,61055.0,61054.0,0.00882]
[1727954356229,0.93384686,61055.0,61054.0,0.00882]
[1727954356883,1.28900802,61055.0,61054.0,0.00882]
[1727954357104,1.58216413,61055.0,61054.0,0.00882]
[1727954357323,1.28900802,61055.0,61054.0,0.00882]
[1727954357543,1.58217338,61055.0,61054.0,0.00882]
[1727954357771,1.58117338,61055.0,61054.0,0.00882]
[1727954358487,1.58017445,61055.0,61054.0,0.00082]
[1727954358728,1.44466397,61055.0,61054.0,0.00282]
[1727954358950,1.44466397,61055.0,61054.0,0.00082]
[1727954359173,1.44466397,61055.0,61054.0,0.00182]
[1727954359435,1.44266397,61055.0,61054.0,0.00182]
[1727954359662,1.60585068,61055.0,61054.0,0.00082]
[1727954359898,1.60885068,61055.0,61054.0,0.00082]
[1727954360640,1.44566397,61055.0,61054.0,0.00082]
[1727954360870,1.44568961,61055.0,61054.0,0.00082]
[1727954361130,1.29638857,61055.0,61054.0,0.00082]
[1727954361383,1.64466923,61055.0,61054.0,0.00082]
[1727954361606,1.33451864,61055.0,61054.0,0.00082]
[1727954361880,1.49770535,61055.0,61054.0,0.00082]
[1727954362093,1.49370535,61055.0,61054.0,0.00082]
[1727954362332,1.49370535,61055.0,61048.0,0.00082]
[1727954362333,0.58870652,61049.0,61048.0,0.00082]
[1727954362569,1.01324192,61049.0,61048.0,0.00082]
[1727954362805,1.46960512,61049.0,61048.0,0.00082]
[1727954363273,1.3435006,61049.0,61048.0,0.00082]
[1727954363534,1.10151389,61049.0,61048.0,0.00082]
[1727954363795,1.10151389,61049.0,61048.0,0.00182]
[1727954363796,1.27919329,61049.0,61048.0,0.00182]
[1727954364045,1.23776765,61049.0,61048.0,0.00182]
[1727954364297,0.43715069,61049.0,61048.0,0.00182]
[1727954365048,0.45141979,61049.0,61048.0,0.00182]
[1727954365300,0.54959226,61049.0,61048.0,0.00082]
[1727954365528,0.56159226,61049.0,61048.0,0.00182]
[1727954365758,0.68484065,61049.0,61048.0,0.00082]
[1727954365983,0.53759226,61049.0,61048.0,0.00082]
[1727954366214,0.54359226,61049.0,61048.0,0.00182]
[1727954367028,0.55159226,61049.0,61048.0,0.00182]
[1727954367831,0.73777897,61049.0,61048.0,0.00182]
[1727954368071,1.46214302,61049.0,61048.0,0.00182]
[1727954368332,1.46214302,61049.0,61037.0,0.001638]
[1727954368333,0.6589285,61039.0,61037.0,0.001638]
[1727954368582,1.085733,61039.0,61037.0,0.001638]
[1727954368834,1.38183695,61039.0,61037.0,0.001638]
[1727954369081,1.10723745,61039.0,61037.0,0.001638]